fUSD/lending_fUSD_20260621
["ID","MTS","AMOUNT","RATE_DAILY","PERIOD"]
[425926931,1782036916000,-815.18207561,0.00016438,2]
[425926929,1782036916000,-815.18207561,0.00016438,2]
[425926937,1782036916000,-815.18207561,0.00016438,2]
[425926928,1782036916000,-815.18207561,0.00016438,2]
[425926925,1782036916000,-815.18207561,0.00016438,2]
[425926926,1782036916000,-815.18207561,0.00016438,2]
[425926923,1782036916000,-815.18207561,0.00016438,2]
[425926930,1782036916000,-815.18207561,0.00016438,2]
[425926940,1782036916000,-815.18207561,0.00016438,2]
[425926924,1782036916000,-815.18207561,0.00016438,2]
[425926942,1782036916000,-815.18207561,0.00016438,2]
[425926959,1782036916000,-815.18207561,0.00016438,2]
[425926941,1782036916000,-815.18207561,0.00016438,2]
[425926956,1782036916000,-815.18207561,0.00016438,2]
[425926958,1782036916000,-815.18207561,0.00016438,2]
[425926957,1782036916000,-815.18207561,0.00016438,2]
[425926954,1782036916000,-815.18207561,0.00016438,2]
[425926953,1782036916000,-815.18207561,0.00016438,2]
[425926952,1782036916000,-815.18207561,0.00016438,2]
[425926955,1782036916000,-815.18207561,0.00016438,2]
[425926950,1782036916000,-815.18207561,0.00016438,2]
[425926951,1782036916000,-815.18207561,0.00016438,2]
[425926947,1782036916000,-815.18207561,0.00016438,2]
[425926948,1782036916000,-815.18207561,0.00016438,2]
[425926945,1782036916000,-815.18207561,0.00016438,2]
[425926946,1782036916000,-815.18207561,0.00016438,2]
[425926944,1782036916000,-815.18207561,0.00016438,2]
[425926949,1782036916000,-815.18207561,0.00016438,2]
[425926943,1782036916000,-815.18207561,0.00016438,2]
[425926970,1782036917000,-1500.0,0.00018344,2]
[425926973,1782036917000,-693.1,0.00018693,2]
[425926977,1782036917000,-1672.7364795,0.00019988,2]
[425926974,1782036917000,-1555.5,0.00018892,2]
[425926975,1782036917000,-8965.01140539,0.00018985,2]
[425926969,1782036917000,-199.5,0.00017723,2]
[425926972,1782036917000,-1000.0,0.00018663,2]
[425926971,1782036917000,-200.0,0.00018602,2]
[425926962,1782036917000,-815.18207561,0.00016438,2]
[425926968,1782036917000,-150.0,0.000177,7]
[425926966,1782036917000,-815.18207561,0.00016438,2]
[425926964,1782036917000,-815.18207561,0.00016438,2]
[425926965,1782036917000,-815.18207561,0.00016438,2]
[425926963,1782036917000,-815.18207561,0.00016438,2]
[425926960,1782036917000,-815.18207561,0.00016438,2]
[425926976,1782036917000,-1613.0535,0.0001944,2]
[425926961,1782036917000,-815.18207561,0.00016438,2]
[425926967,1782036917000,-8965.01140539,0.00017189,2]
[425926978,1782036917000,-151.0,0.0002,2]
[425926980,1782036917000,-413.0,0.00020134,2]
[425926981,1782036917000,-1734.62772924,0.00020536,2]
[425926979,1782036917000,-2500.0,0.00020134,2]
[425926997,1782036917000,-500.0,0.00022728,2]
[425926995,1782036917000,-500.0,0.00022728,2]
[425926996,1782036917000,-151.0,0.00022728,2]
[425926993,1782036917000,-500.0,0.00022728,2]
[425926991,1782036917000,-184.5234098,0.00022723,2]
[425926992,1782036917000,-500.0,0.00022728,2]
[425926990,1782036917000,-8965.01140539,0.00022578,2]
[425926998,1782036917000,-151.0,0.00022728,2]
[425926988,1782036917000,-1320.17763428,0.00022407,2]
[425926989,1782036917000,-1320.17763428,0.00022407,2]
[425926982,1782036917000,-8965.01140539,0.00020781,2]
[425926983,1782036917000,-151.0,0.00021,2]
[425926994,1782036917000,-151.0,0.00022728,2]
[425926985,1782036917000,-500.0,0.00021302,2]
[425926986,1782036917000,-151.0,0.00022,2]
[425926987,1782036917000,-1320.1776343,0.00022407,2]
[425926984,1782036917000,-1261.18929128,0.00021084,2]
[425927012,1782036918000,-301948.0239077,0.00022992,2]
[425927010,1782036918000,-151.0,0.00022728,2]
[425927007,1782036918000,-151.0,0.00022728,2]
[425927009,1782036918000,-151.0,0.00022728,2]
[425927008,1782036918000,-151.0,0.00022728,2]
[425927006,1782036918000,-151.0,0.00022728,2]
[425927003,1782036918000,-151.0,0.00022728,2]
[425927004,1782036918000,-500.0,0.00022728,2]
[425927002,1782036918000,-500.0,0.00022728,2]
[425927000,1782036918000,-500.0,0.00022728,2]
[425926999,1782036918000,-500.0,0.00022728,2]
[425927013,1782036918000,-28187.2528342,0.00022992,2]
[425927005,1782036918000,-151.0,0.00022728,2]
[425927001,1782036918000,-151.0,0.00022728,2]
[425927017,1782036918000,-2500.0,0.00023498,2]
[425927014,1782036918000,-163.69833086,0.00023,2]
[425927011,1782036918000,-151.0,0.00022728,2]
[425927027,1782036918000,-8965.01140539,0.0002617,2]
[425927026,1782036918000,-162.23,0.00024658,2]
[425927028,1782036918000,-5000.0,0.00026244,2]
[425927025,1782036918000,-214.05,0.00024658,2]
[425927024,1782036918000,-8965.01140539,0.00024374,2]
[425927023,1782036918000,-3560.0,0.00024272,2]
[425927019,1782036918000,-2500.0,0.00023498,2]
[425927021,1782036918000,-333.38736378,0.00023997,2]
[425927020,1782036918000,-2500.0,0.00023498,2]
[425927018,1782036918000,-2500.0,0.00023498,2]
[425927015,1782036918000,-210.68,0.000231,14]
[425927016,1782036918000,-793.03071857,0.00023219,2]
[425927022,1782036918000,-1231.662,0.00024134,2]
[425927038,1782036919000,-510.0,0.00027137,2]
[425927041,1782036919000,-500.0,0.00027396,2]
[425927043,1782036919000,-500.0,0.00027396,2]
[425927040,1782036919000,-1802.62632435,0.00027297,2]
[425927042,1782036919000,-500.0,0.00027396,2]
[425927039,1782036919000,-3560.0,0.00027272,2]
[425927037,1782036919000,-510.0,0.00027137,2]
[425927030,1782036919000,-278.4670632,0.0002635,14]
[425927036,1782036919000,-1229.0,0.00027134,2]
[425927033,1782036919000,-183.92733603,0.00026495,2]
[425927034,1782036919000,-500.0,0.00026627,2]
[425927031,1782036919000,-416.57007252,0.0002635,14]
[425927032,1782036919000,-563.6268,0.0002635,14]
[425927029,1782036919000,-151.0,0.00026296,2]
[425927046,1782036919000,-320.40893862,0.00027397,2]
[425927035,1782036919000,-471.03,0.00027048,2]
[425927045,1782036919000,-500.0,0.00027397,2]
[425927044,1782036919000,-408.0,0.00027397,2]
[425927050,1782036919000,-309.26876105,0.00027397,2]
[425927064,1782036919000,-500.0,0.00027397,2]
[425927047,1782036919000,-500.0,0.00027397,2]
[425927065,1782036919000,-500.0,0.00027397,2]
[425927063,1782036919000,-500.0,0.00027397,2]
[425927060,1782036919000,-500.0,0.00027397,2]
[425927061,1782036919000,-500.0,0.00027397,2]
[425927059,1782036919000,-500.0,0.00027397,2]
[425927056,1782036919000,-500.0,0.00027397,2]
[425927057,1782036919000,-500.0,0.00027397,2]
[425927062,1782036919000,-572.08726064,0.00027397,2]
[425927055,1782036919000,-3348.53,0.00027397,2]
[425927052,1782036919000,-500.0,0.00027397,2]
[425927054,1782036919000,-500.0,0.00027397,2]
[425927051,1782036919000,-500.0,0.00027397,2]
[425927053,1782036919000,-500.0,0.00027397,2]
[425927049,1782036919000,-500.0,0.00027397,2]
[425927048,1782036919000,-500.0,0.00027397,2]
[425927058,1782036919000,-500.0,0.00027397,2]
[425927075,1782036920000,-500.0,0.00027397,2]
[425927084,1782036920000,-500.0,0.00027397,2]
[425927079,1782036920000,-500.0,0.00027397,2]
[425927078,1782036920000,-500.0,0.00027397,2]
[425927080,1782036920000,-500.0,0.00027397,2]
[425927076,1782036920000,-500.0,0.00027397,2]
[425927077,1782036920000,-500.0,0.00027397,2]
[425927074,1782036920000,-500.0,0.00027397,2]
[425927066,1782036920000,-500.0,0.00027397,2]
[425927073,1782036920000,-500.0,0.00027397,2]
[425927072,1782036920000,-500.0,0.00027397,2]
[425927070,1782036920000,-500.0,0.00027397,2]
[425927068,1782036920000,-500.0,0.00027397,2]
[425927069,1782036920000,-500.0,0.00027397,2]
[425927067,1782036920000,-500.0,0.00027397,2]
[425927081,1782036920000,-577.76,0.00027397,2]
[425927071,1782036920000,-3939.2,0.00027397,2]
[425927083,1782036920000,-538.37,0.00027397,2]
[425927101,1782036920000,-1479.66,0.00027397,2]
[425927085,1782036920000,-500.0,0.00027397,2]
[425927082,1782036920000,-500.0,0.00027397,2]
[425927102,1782036920000,-500.0,0.00027397,2]
[425927100,1782036920000,-500.0,0.00027397,2]
[425927098,1782036920000,-500.0,0.00027397,2]
[425927099,1782036920000,-500.0,0.00027397,2]
[425927096,1782036920000,-500.0,0.00027397,2]
[425927095,1782036920000,-500.0,0.00027397,2]
[425927093,1782036920000,-500.0,0.00027397,2]
[425927097,1782036920000,-500.0,0.00027397,2]
[425927090,1782036920000,-500.0,0.00027397,2]
[425927092,1782036920000,-500.0,0.00027397,2]
[425927091,1782036920000,-500.0,0.00027397,2]
[425927089,1782036920000,-500.0,0.00027397,2]
[425927086,1782036920000,-500.0,0.00027397,2]
[425927088,1782036920000,-500.0,0.00027397,2]
[425927087,1782036920000,-500.0,0.00027397,2]
[425927094,1782036920000,-8655.23,0.00027397,2]
[425927115,1782036921000,-500.0,0.00027397,2]
[425927118,1782036921000,-500.0,0.00027397,2]
[425927117,1782036921000,-9276.24,0.00027397,2]
[425927116,1782036921000,-5236.41,0.00027397,2]
[425927114,1782036921000,-500.0,0.00027397,2]
[425927113,1782036921000,-500.0,0.00027397,2]
[425927112,1782036921000,-500.0,0.00027397,2]
[425927103,1782036921000,-500.0,0.00027397,2]
[425927110,1782036921000,-500.0,0.00027397,2]
[425927108,1782036921000,-500.0,0.00027397,2]
[425927109,1782036921000,-500.0,0.00027397,2]
[425927105,1782036921000,-500.0,0.00027397,2]
[425927106,1782036921000,-500.0,0.00027397,2]
[425927107,1782036921000,-500.0,0.00027397,2]
[425927104,1782036921000,-500.0,0.00027397,2]
[425927111,1782036921000,-5812.12,0.00027397,2]
[425927121,1782036921000,-500.0,0.00027397,2]
[425927119,1782036921000,-500.0,0.00027397,2]
[425927120,1782036921000,-768.67,0.00027397,2]
[425927122,1782036921000,-500.0,0.00027397,2]
[425927139,1782036921000,-500.0,0.00027397,2]
[425927134,1782036921000,-500.0,0.00027397,2]
[425927137,1782036921000,-6319.14,0.00027397,2]
[425927136,1782036921000,-500.0,0.00027397,2]
[425927135,1782036921000,-500.0,0.00027397,2]
[425927133,1782036921000,-500.0,0.00027397,2]
[425927132,1782036921000,-500.0,0.00027397,2]
[425927138,1782036921000,-606.62,0.00027397,2]
[425927131,1782036921000,-500.0,0.00027397,2]
[425927127,1782036921000,-657.06,0.00027397,2]
[425927129,1782036921000,-500.0,0.00027397,2]
[425927128,1782036921000,-500.0,0.00027397,2]
[425927126,1782036921000,-500.0,0.00027397,2]
[425927124,1782036921000,-500.0,0.00027397,2]
[425927123,1782036921000,-500.0,0.00027397,2]
[425927125,1782036921000,-500.0,0.00027397,2]
[425927130,1782036921000,-500.0,0.00027397,2]
[425927152,1782036922000,-500.0,0.00027397,2]
[425927151,1782036922000,-500.0,0.00027397,2]
[425927150,1782036922000,-500.0,0.00027397,2]
[425927149,1782036922000,-516.95,0.00027397,2]
[425927147,1782036922000,-509.56,0.00027397,2]
[425927148,1782036922000,-500.0,0.00027397,2]
[425927143,1782036922000,-500.0,0.00027397,2]
[425927142,1782036922000,-500.0,0.00027397,2]
[425927144,1782036922000,-500.0,0.00027397,2]
[425927145,1782036922000,-500.0,0.00027397,2]
[425927140,1782036922000,-657.98,0.00027397,2]
[425927141,1782036922000,-500.0,0.00027397,2]
[425927153,1782036922000,-500.0,0.00027397,2]
[425927146,1782036922000,-1301.74,0.00027397,2]
[425927155,1782036922000,-500.0,0.00027397,2]
[425927156,1782036922000,-500.0,0.00027397,2]
[425927170,1782036922000,-504.3253233,0.00027397,2]
[425927154,1782036922000,-500.0,0.00027397,2]
[425927169,1782036922000,-500.0,0.00027397,2]
[425927167,1782036922000,-234.48980734,0.00027397,2]
[425927168,1782036922000,-1343.92,0.00027397,2]
[425927164,1782036922000,-7482.28,0.00027397,2]
[425927165,1782036922000,-500.0,0.00027397,2]
[425927166,1782036922000,-500.0,0.00027397,2]
[425927161,1782036922000,-500.0,0.00027397,2]
[425927162,1782036922000,-500.0,0.00027397,2]
[425927158,1782036922000,-6679.24,0.00027397,2]
[425927160,1782036922000,-500.0,0.00027397,2]
[425927159,1782036922000,-500.0,0.00027397,2]
[425927157,1782036922000,-500.0,0.00027397,2]
[425927163,1782036922000,-500.0,0.00027397,2]
[425927180,1782036923000,-500.0,0.00027397,2]
[425927184,1782036923000,-500.0,0.00027397,2]
[425927182,1782036923000,-500.0,0.00027397,2]
[425927181,1782036923000,-5369.7,0.00027397,2]
[425927179,1782036923000,-9382.34,0.00027397,2]
[425927178,1782036923000,-508.21801403,0.00027397,2]
[425927183,1782036923000,-698.04,0.00027397,2]
[425927177,1782036923000,-500.0,0.00027397,2]
[425927175,1782036923000,-500.0,0.00027397,2]
[425927174,1782036923000,-500.0,0.00027397,2]
[425927173,1782036923000,-746.08,0.00027397,2]
[425927172,1782036923000,-9364.89,0.00027397,2]
[425927171,1782036923000,-500.0,0.00027397,2]
[425927176,1782036923000,-500.0,0.00027397,2]
[425927186,1782036923000,-500.0,0.00027397,2]
[425927185,1782036923000,-500.0,0.00027397,2]
[425927187,1782036923000,-7097.95,0.00027397,2]
[425927200,1782036923000,-9607.79,0.00027397,2]
[425927199,1782036923000,-649.69,0.00027397,2]
[425927198,1782036923000,-500.0,0.00027397,2]
[425927197,1782036923000,-500.0,0.00027397,2]
[425927196,1782036923000,-500.0,0.00027397,2]
[425927195,1782036923000,-500.0,0.00027397,2]
[425927201,1782036923000,-500.0,0.00027397,2]
[425927192,1782036923000,-500.0,0.00027397,2]
[425927193,1782036923000,-500.0,0.00027397,2]
[425927190,1782036923000,-500.0,0.00027397,2]
[425927191,1782036923000,-500.0,0.00027397,2]
[425927188,1782036923000,-500.0,0.00027397,2]
[425927189,1782036923000,-500.0,0.00027397,2]
[425927194,1782036923000,-500.0,0.00027397,2]
[425927213,1782036924000,-500.0,0.00027397,2]
[425927214,1782036924000,-296.45747801,0.00027397,2]
[425927212,1782036924000,-500.0,0.00027397,2]
[425927209,1782036924000,-500.0,0.00027397,2]
[425927211,1782036924000,-500.0,0.00027397,2]
[425927210,1782036924000,-579.09603838,0.00027397,2]
[425927205,1782036924000,-1115.01,0.00027397,2]
[425927206,1782036924000,-500.0,0.00027397,2]
[425927207,1782036924000,-500.0,0.00027397,2]
[425927204,1782036924000,-500.0,0.00027397,2]
[425927203,1782036924000,-500.0,0.00027397,2]
[425927202,1782036924000,-500.0,0.00027397,2]
[425927215,1782036924000,-500.0,0.00027397,2]
[425927208,1782036924000,-500.0,0.00027397,2]
[425927217,1782036924000,-9958.1,0.00027397,2]
[425927216,1782036924000,-1318.17,0.00027397,2]
[425927233,1782036924000,-7582.33,0.00027397,2]
[425927234,1782036924000,-500.0,0.00027397,2]
[425927219,1782036924000,-500.0,0.00027397,2]
[425927232,1782036924000,-527.04,0.00027397,2]
[425927230,1782036924000,-325.11260092,0.00027397,2]
[425927231,1782036924000,-3721.12,0.00027397,2]
[425927228,1782036924000,-500.0,0.00027397,2]
[425927227,1782036924000,-500.0,0.00027397,2]
[425927229,1782036924000,-509.08760568,0.00027397,2]
[425927225,1782036924000,-500.0,0.00027397,2]
[425927224,1782036924000,-500.0,0.00027397,2]
[425927223,1782036924000,-503.59035549,0.00027397,2]
[425927222,1782036924000,-500.0,0.00027397,2]
[425927221,1782036924000,-4302.95,0.00027397,2]
[425927220,1782036924000,-500.0,0.00027397,2]
[425927218,1782036924000,-500.0,0.00027397,2]
[425927226,1782036924000,-611.66835038,0.00027397,2]
[425927244,1782036925000,-500.0,0.00027397,2]
[425927248,1782036925000,-4760.41,0.00027397,2]
[425927247,1782036925000,-4069.76,0.00027397,2]
[425927246,1782036925000,-8550.37,0.00027397,2]
[425927243,1782036925000,-500.0,0.00027397,2]
[425927242,1782036925000,-500.0,0.00027397,2]
[425927245,1782036925000,-1000.0,0.00027397,2]
[425927238,1782036925000,-7163.35,0.00027397,2]
[425927240,1782036925000,-500.0,0.00027397,2]
[425927239,1782036925000,-500.0,0.00027397,2]
[425927236,1782036925000,-4071.99,0.00027397,2]
[425927237,1782036925000,-500.0,0.00027397,2]
[425927235,1782036925000,-782.25,0.00027397,2]
[425927241,1782036925000,-218.20538389,0.00027397,2]
[425927250,1782036925000,-4510.93,0.00027397,2]
[425927263,1782036925000,-500.0,0.00027397,2]
[425927251,1782036925000,-500.0,0.00027397,2]
[425927249,1782036925000,-6792.59,0.00027397,2]
[425927264,1782036925000,-500.0,0.00027397,2]
[425927265,1782036925000,-500.0,0.00027397,2]
[425927262,1782036925000,-500.0,0.00027397,2]
[425927260,1782036925000,-500.0,0.00027397,2]
[425927257,1782036925000,-500.0,0.00027397,2]
[425927261,1782036925000,-500.0,0.00027397,2]
[425927258,1782036925000,-500.0,0.00027397,2]
[425927256,1782036925000,-500.0,0.00027397,2]
[425927255,1782036925000,-500.0,0.00027397,2]
[425927253,1782036925000,-500.0,0.00027397,2]
[425927254,1782036925000,-500.0,0.00027397,2]
[425927252,1782036925000,-4404.74,0.00027397,2]
[425927259,1782036925000,-500.0,0.00027397,2]
[425927274,1782036926000,-3818.62,0.00027397,2]
[425927281,1782036926000,-500.0,0.00027397,2]
[425927279,1782036926000,-482.84624611,0.00027397,2]
[425927277,1782036926000,-500.0,0.00027397,2]
[425927278,1782036926000,-500.0,0.00027397,2]
[425927276,1782036926000,-500.0,0.00027397,2]
[425927275,1782036926000,-8721.3,0.00027397,2]
[425927266,1782036926000,-500.0,0.00027397,2]
[425927273,1782036926000,-500.0,0.00027397,2]
[425927269,1782036926000,-500.0,0.00027397,2]
[425927271,1782036926000,-500.0,0.00027397,2]
[425927270,1782036926000,-500.0,0.00027397,2]
[425927268,1782036926000,-500.0,0.00027397,2]
[425927267,1782036926000,-500.0,0.00027397,2]
[425927280,1782036926000,-5868.27,0.00027397,2]
[425927272,1782036926000,-1025.47,0.00027397,2]
[425927284,1782036926000,-500.0,0.00027397,2]
[425927282,1782036926000,-500.0,0.00027397,2]
[425927300,1782036926000,-500.0,0.00027397,2]
[425927301,1782036926000,-500.0,0.00027397,2]
[425927283,1782036926000,-500.0,0.00027397,2]
[425927298,1782036926000,-6921.75,0.00027397,2]
[425927299,1782036926000,-560.95,0.00027397,2]
[425927297,1782036926000,-500.0,0.00027397,2]
[425927294,1782036926000,-500.0,0.00027397,2]
[425927295,1782036926000,-500.0,0.00027397,2]
[425927293,1782036926000,-500.0,0.00027397,2]
[425927296,1782036926000,-5653.76,0.00027397,2]
[425927290,1782036926000,-500.0,0.00027397,2]
[425927291,1782036926000,-500.0,0.00027397,2]
[425927289,1782036926000,-500.0,0.00027397,2]
[425927287,1782036926000,-500.0,0.00027397,2]
[425927288,1782036926000,-500.0,0.00027397,2]
[425927286,1782036926000,-500.0,0.00027397,2]
[425927285,1782036926000,-500.0,0.00027397,2]
[425927292,1782036926000,-4069.23,0.00027397,2]
[425927310,1782036927000,-500.0,0.00027397,2]
[425927316,1782036927000,-500.0,0.00027397,2]
[425927312,1782036927000,-506.46,0.00027397,2]
[425927314,1782036927000,-500.0,0.00027397,2]
[425927313,1782036927000,-500.0,0.00027397,2]
[425927311,1782036927000,-500.0,0.00027397,2]
[425927309,1782036927000,-569.6,0.00027397,2]
[425927315,1782036927000,-583.89,0.00027397,2]
[425927307,1782036927000,-500.0,0.00027397,2]
[425927306,1782036927000,-500.0,0.00027397,2]
[425927305,1782036927000,-500.0,0.00027397,2]
[425927304,1782036927000,-500.0,0.00027397,2]
[425927303,1782036927000,-500.0,0.00027397,2]
[425927302,1782036927000,-731.94,0.00027397,2]
[425927308,1782036927000,-500.0,0.00027397,2]
[425927317,1782036927000,-536.13,0.00027397,2]
[425927335,1782036927000,-169.38,0.00027397,7]
[425927320,1782036927000,-500.0,0.00027397,2]
[425927318,1782036927000,-500.0,0.00027397,2]
[425927334,1782036927000,-500.0,0.00027397,2]
[425927333,1782036927000,-500.0,0.00027397,2]
[425927332,1782036927000,-500.0,0.00027397,2]
[425927331,1782036927000,-500.0,0.00027397,2]
[425927330,1782036927000,-161.00287,0.00027397,2]
[425927328,1782036927000,-500.0,0.00027397,2]
[425927329,1782036927000,-500.0,0.00027397,2]
[425927326,1782036927000,-500.0,0.00027397,2]
[425927325,1782036927000,-500.0,0.00027397,2]
[425927324,1782036927000,-500.0,0.00027397,2]
[425927322,1782036927000,-500.0,0.00027397,2]
[425927323,1782036927000,-619.56,0.00027397,2]
[425927321,1782036927000,-500.0,0.00027397,2]
[425927319,1782036927000,-500.0,0.00027397,2]
[425927327,1782036927000,-500.0,0.00027397,2]
[425927344,1782036928000,-500.0,0.00027397,2]
[425927349,1782036928000,-500.0,0.00027397,2]
[425927350,1782036928000,-500.0,0.00027397,2]
[425927348,1782036928000,-500.0,0.00027397,2]
[425927346,1782036928000,-550.93,0.00027397,2]
[425927347,1782036928000,-500.0,0.00027397,2]
[425927345,1782036928000,-282.49604,0.00027397,2]
[425927351,1782036928000,-500.0,0.00027397,2]
[425927343,1782036928000,-500.0,0.00027397,2]
[425927341,1782036928000,-500.0,0.00027397,2]
[425927339,1782036928000,-500.0,0.00027397,2]
[425927340,1782036928000,-500.0,0.00027397,2]
[425927338,1782036928000,-500.0,0.00027397,2]
[425927337,1782036928000,-1307.13,0.00027397,2]
[425927336,1782036928000,-500.0,0.00027397,2]
[425927342,1782036928000,-500.0,0.00027397,2]
[425927352,1782036928000,-500.0,0.00027397,2]
[425927369,1782036928000,-1589.56,0.00027397,2]
[425927353,1782036928000,-500.0,0.00027397,2]
[425927370,1782036928000,-488.31906995,0.00027397,2]
[425927367,1782036928000,-500.0,0.00027397,2]
[425927368,1782036928000,-500.0,0.00027397,2]
[425927366,1782036928000,-500.0,0.00027397,2]
[425927365,1782036928000,-500.0,0.00027397,2]
[425927363,1782036928000,-500.0,0.00027397,2]
[425927364,1782036928000,-500.0,0.00027397,2]
[425927355,1782036928000,-500.0,0.00027397,2]
[425927360,1782036928000,-500.0,0.00027397,2]
[425927361,1782036928000,-500.0,0.00027397,2]
[425927358,1782036928000,-500.0,0.00027397,2]
[425927359,1782036928000,-500.0,0.00027397,2]
[425927356,1782036928000,-500.0,0.00027397,2]
[425927357,1782036928000,-500.0,0.00027397,2]
[425927354,1782036928000,-606.84,0.00027397,2]
[425927362,1782036928000,-500.0,0.00027397,2]
[425927386,1782036929000,-500.0,0.00027397,2]
[425927384,1782036929000,-650.62,0.00027397,2]
[425927383,1782036929000,-500.0,0.00027397,2]
[425927381,1782036929000,-500.0,0.00027397,2]
[425927382,1782036929000,-500.0,0.00027397,2]
[425927380,1782036929000,-500.0,0.00027397,2]
[425927378,1782036929000,-500.0,0.00027397,2]
[425927377,1782036929000,-758.95,0.00027397,2]
[425927376,1782036929000,-500.0,0.00027397,2]
[425927374,1782036929000,-500.0,0.00027397,2]
[425927375,1782036929000,-500.0,0.00027397,2]
[425927371,1782036929000,-500.0,0.00027397,2]
[425927372,1782036929000,-500.0,0.00027397,2]
[425927387,1782036929000,-500.0,0.00027397,2]
[425927379,1782036929000,-500.0,0.00027397,2]
[425927385,1782036929000,-500.0,0.00027397,2]
[425927373,1782036929000,-500.0,0.00027397,2]
[425927389,1782036929000,-1090.82,0.00027397,2]
[425927405,1782036929000,-500.0,0.00027397,2]
[425927402,1782036929000,-771.72,0.00027397,2]
[425927403,1782036929000,-500.0,0.00027397,2]
[425927399,1782036929000,-500.0,0.00027397,2]
[425927401,1782036929000,-500.0,0.00027397,2]
[425927400,1782036929000,-500.0,0.00027397,2]
[425927398,1782036929000,-500.0,0.00027397,2]
[425927404,1782036929000,-500.0,0.00027397,2]
[425927395,1782036929000,-2292.48,0.00027397,2]
[425927397,1782036929000,-2432.42,0.00027397,2]
[425927391,1782036929000,-3075.22,0.00027397,2]
[425927390,1782036929000,-773.81,0.00027397,2]
[425927388,1782036929000,-500.0,0.00027397,2]
[425927392,1782036929000,-500.0,0.00027397,2]
[425927394,1782036929000,-500.0,0.00027397,2]
[425927396,1782036929000,-882.07,0.00027397,2]
[425927393,1782036929000,-66908.137212,0.00027397,2]
[425927420,1782036930000,-500.0,0.00027397,2]
[425927419,1782036930000,-500.0,0.00027397,2]
[425927417,1782036930000,-500.0,0.00027397,2]
[425927418,1782036930000,-500.0,0.00027397,2]
[425927416,1782036930000,-500.0,0.00027397,2]
[425927414,1782036930000,-500.0,0.00027397,2]
[425927415,1782036930000,-1180.04,0.00027397,2]
[425927412,1782036930000,-869.49,0.00027397,2]
[425927413,1782036930000,-1593.05,0.00027397,2]
[425927407,1782036930000,-170.260492,0.00027397,2]
[425927409,1782036930000,-500.0,0.00027397,2]
[425927408,1782036930000,-500.0,0.00027397,2]
[425927406,1782036930000,-5806.22,0.00027397,2]
[425927422,1782036930000,-500.0,0.00027397,2]
[425927410,1782036930000,-161.00287,0.00027397,2]
[425927411,1782036930000,-500.0,0.00027397,2]
[425927424,1782036930000,-500.0,0.00027397,2]
[425927421,1782036930000,-500.0,0.00027397,2]
[425927423,1782036930000,-2206.58,0.00027397,2]
[425927435,1782036930000,-5783.92,0.00027397,2]
[425927438,1782036930000,-500.0,0.00027397,2]
[425927437,1782036930000,-500.0,0.00027397,2]
[425927434,1782036930000,-2983.54,0.00027397,2]
[425927433,1782036930000,-500.0,0.00027397,2]
[425927432,1782036930000,-500.0,0.00027397,2]